[Event "December 19 Early 2023"]
[Site "https://www.chess.com"]
[Date "2023.12.19"]
[Round "5"]
[White "Omariev, Maksim"]
[Black "Domingo Nunez, Alejandro"]
[Result "0-1"]
[Board "104"]
[TimeControl "180+1"]
[WhiteFideId "4193423"]
[BlackFideId "22245561"]
[WhiteElo "2456"]
[BlackElo "2252"]
[WhiteTeam "RUS"]
[BlackTeam "ESP"]
[WhiteClock "0:00:00"]
[BlackClock "0:01:41"]

1. e4 {[%clk 0:02:58]}  g6 {[%clk 0:03:00]} 2. d4 {[%clk 0:02:57]}  Bg7 {[%clk 0:03:01]} 3. Nc3 {[%clk 0:02:57]}  c6 {[%clk 0:03:01]} 4. Be3 {[%clk 0:02:57]}  d5 {[%clk 0:03:02]} 5. e5 {[%clk 0:02:57]}  f6 {[%clk 0:03:02]} 6. f4 {[%clk 0:02:57]}  Nh6 {[%clk 0:03:03]} 7. Be2 {[%clk 0:02:54]}  O-O {[%clk 0:03:03]} 8. Qd2 {[%clk 0:02:53]}  fxe5 {[%clk 0:02:41]} 9. fxe5 {[%clk 0:02:50]}  Nf5 {[%clk 0:02:41]} 10. Bf4 {[%clk 0:02:35]}  e6 {[%clk 0:02:14]} 11. Nf3 {[%clk 0:02:24]}  c5 {[%clk 0:02:13]} 12. dxc5 {[%clk 0:02:12]}  Nc6 {[%clk 0:02:13]} 13. a3 {[%clk 0:01:47]}  Qa5 {[%clk 0:02:08]} 14. Nb5 {[%clk 0:01:36]}  Qa4 {[%clk 0:02:00]} 15. b3 {[%clk 0:01:10]}  Qa5 {[%clk 0:02:00]} 16. b4 {[%clk 0:00:51]}  Qd8 {[%clk 0:02:00]} 17. O-O {[%clk 0:00:48]}  Bd7 {[%clk 0:01:55]} 18. Nd6 {[%clk 0:00:48]}  Nxd6 {[%clk 0:01:51]} 19. exd6 {[%clk 0:00:31]}  Bxa1 {[%clk 0:01:49]} 20. Rxa1 {[%clk 0:00:19]}  Qf6 {[%clk 0:01:49]} 21. Re1 {[%clk 0:00:05]}  Qxf4 {[%clk 0:01:49]} 22. Qxf4 {[%clk 0:00:02]}  Rxf4 {[%clk 0:01:50]} 23. Bd3 {[%clk 0:00:02]}  Re8 {[%clk 0:01:48]} 24. b5 {[%clk 0:00:02]}  Nd4 {[%clk 0:01:47]} 25. Ne5 {[%clk 0:00:03]}  Bxb5 {[%clk 0:01:43]} 26. Bxb5 {[%clk 0:00:02]}  Nxb5 {[%clk 0:01:44]} 27. Rb1 {[%clk 0:00:03]}  Nd4 {[%clk 0:01:42]} 28. Rc1 {[%clk 0:00:00]}  Ne2+ {[%clk 0:01:41]} 0-1

[Event "December 19 Early 2023"]
[Site "https://www.chess.com"]
[Date "2023.12.19"]
[Round "5"]
[White "Serban, Cristian-Stefan"]
[Black "Al-Tarboush, Ward"]
[Result "0-1"]
[Board "109"]
[TimeControl "180+1"]
[WhiteFideId "1241443"]
[BlackFideId "7601450"]
[WhiteElo "2040"]
[BlackElo "2278"]
[WhiteTeam "ROU"]
[BlackTeam "NOR"]
[WhiteClock "0:00:00"]
[BlackClock "0:00:05"]

1. d4 {[%clk 0:03:00]}  Nf6 {[%clk 0:02:28]} 2. Bf4 {[%clk 0:02:59]}  b6 {[%clk 0:02:28]} 3. e3 {[%clk 0:02:42]}  Bb7 {[%clk 0:02:27]} 4. Nf3 {[%clk 0:02:42]}  e6 {[%clk 0:02:26]} 5. Be2 {[%clk 0:02:39]}  Be7 {[%clk 0:02:24]} 6. c4 {[%clk 0:02:35]}  O-O {[%clk 0:02:19]} 7. O-O {[%clk 0:02:35]}  d5 {[%clk 0:02:16]} 8. cxd5 {[%clk 0:02:29]}  Nxd5 {[%clk 0:02:14]} 9. Bg3 {[%clk 0:02:29]}  c5 {[%clk 0:02:12]} 10. Nc3 {[%clk 0:02:22]}  cxd4 {[%clk 0:02:08]} 11. Nxd5 {[%clk 0:02:22]}  Qxd5 {[%clk 0:02:03]} 12. Qxd4 {[%clk 0:02:21]}  Nd7 {[%clk 0:01:59]} 13. Rac1 {[%clk 0:02:12]}  Rac8 {[%clk 0:01:58]} 14. Bc4 {[%clk 0:01:54]}  Qxd4 {[%clk 0:01:49]} 15. Nxd4 {[%clk 0:01:55]}  a6 {[%clk 0:01:47]} 16. Nxe6 {[%clk 0:01:45]}  Rfe8 {[%clk 0:01:36]} 17. Nd4 {[%clk 0:01:37]}  b5 {[%clk 0:01:34]} 18. Bb3 {[%clk 0:01:36]}  Nc5 {[%clk 0:01:34]} 19. Bc2 {[%clk 0:01:30]}  Bd5 {[%clk 0:01:34]} 20. b3 {[%clk 0:01:29]}  Ne4 {[%clk 0:01:33]} 21. Nf5 {[%clk 0:01:09]}  Ba3 {[%clk 0:01:31]} 22. Bxe4 {[%clk 0:00:45]}  Bxe4 {[%clk 0:01:29]} 23. Rxc8 {[%clk 0:00:43]}  Rxc8 {[%clk 0:01:29]} 24. Nd4 {[%clk 0:00:42]}  g6 {[%clk 0:01:19]} 25. f3 {[%clk 0:00:42]}  Bd3 {[%clk 0:01:08]} 26. Rd1 {[%clk 0:00:40]}  Rc1 {[%clk 0:01:06]} 27. Rxc1 {[%clk 0:00:39]}  Bxc1 {[%clk 0:01:07]} 28. Kf2 {[%clk 0:00:35]}  Bb1 {[%clk 0:01:00]} 29. a4 {[%clk 0:00:35]}  bxa4 {[%clk 0:00:34]} 30. bxa4 {[%clk 0:00:36]}  Bd2 {[%clk 0:00:32]} 31. Nc6 {[%clk 0:00:33]}  Bc2 {[%clk 0:00:27]} 32. a5 {[%clk 0:00:20]}  Ba4 {[%clk 0:00:25]} 33. Ne7+ {[%clk 0:00:17]}  Kf8 {[%clk 0:00:20]} 34. Bd6 {[%clk 0:00:17]}  Ke8 {[%clk 0:00:17]} 35. Nd5 {[%clk 0:00:16]}  Bxa5 {[%clk 0:00:15]} 36. Nf6+ {[%clk 0:00:16]}  Kd8 {[%clk 0:00:15]} 37. Nxh7 {[%clk 0:00:17]}  Bc3 {[%clk 0:00:14]} 38. Ng5 {[%clk 0:00:16]}  Bb3 {[%clk 0:00:14]} 39. g4 {[%clk 0:00:16]}  Kd7 {[%clk 0:00:14]} 40. Ba3 {[%clk 0:00:15]}  a5 {[%clk 0:00:14]} 41. h4 {[%clk 0:00:16]}  Bf6 {[%clk 0:00:13]} 42. Ne4 {[%clk 0:00:16]}  Bxh4+ {[%clk 0:00:13]} 43. Ke2 {[%clk 0:00:16]}  Bd5 {[%clk 0:00:13]} 44. Nc5+ {[%clk 0:00:14]}  Kc6 {[%clk 0:00:13]} 45. e4 {[%clk 0:00:14]}  Bc4+ {[%clk 0:00:13]} 46. Ke3 {[%clk 0:00:14]}  Be7 {[%clk 0:00:14]} 47. Kd4 {[%clk 0:00:14]}  Bb5 {[%clk 0:00:12]} 48. f4 {[%clk 0:00:09]}  a4 {[%clk 0:00:11]} 49. g5 {[%clk 0:00:07]}  Bf1 {[%clk 0:00:07]} 50. Bb4 {[%clk 0:00:07]}  Be2 {[%clk 0:00:07]} 51. Ba3 {[%clk 0:00:07]}  Kb5 {[%clk 0:00:07]} 52. e5 {[%clk 0:00:05]}  Bg4 {[%clk 0:00:06]} 53. Kd5 {[%clk 0:00:05]}  Bf3+ {[%clk 0:00:07]} 54. Kd4 {[%clk 0:00:06]}  Kc6 {[%clk 0:00:07]} 55. Bb4 {[%clk 0:00:06]}  Bd5 {[%clk 0:00:07]} 56. Ba3 {[%clk 0:00:06]}  Bb3 {[%clk 0:00:07]} 57. Bb4 {[%clk 0:00:05]}  Be6 {[%clk 0:00:06]} 58. Ba3 {[%clk 0:00:04]}  Bf5 {[%clk 0:00:05]} 59. Bb4 {[%clk 0:00:04]}  Bd8 {[%clk 0:00:06]} 60. Ne4 {[%clk 0:00:04]}  Bb6+ {[%clk 0:00:05]} 61. Kd3 {[%clk 0:00:00]}  Kd5 {[%clk 0:00:05]} 0-1

[Event "December 19 Early 2023"]
[Site "https://www.chess.com"]
[Date "2023.12.19"]
[Round "5"]
[White "Thorfinnsson, Bragi"]
[Black "Liu, Casper"]
[Result "1-0"]
[Board "110"]
[TimeControl "180+1"]
[WhiteFideId "2300958"]
[BlackFideId "1454153"]
[WhiteElo "2325"]
[BlackElo "2221"]
[WhiteTeam "ISL"]
[BlackTeam "DEN"]
[WhiteClock "0:00:11"]
[BlackClock "0:00:20"]

1. b3 {[%clk 0:03:00]}  f5 {[%clk 0:02:55]} 2. Bb2 {[%clk 0:03:00]}  Nf6 {[%clk 0:02:55]} 3. c4 {[%clk 0:02:54]}  g6 {[%clk 0:02:56]} 4. Bxf6 {[%clk 0:02:35]}  exf6 {[%clk 0:02:57]} 5. Nc3 {[%clk 0:02:36]}  f4 {[%clk 0:02:50]} 6. h4 {[%clk 0:02:32]}  Bg7 {[%clk 0:02:49]} 7. h5 {[%clk 0:02:30]}  O-O {[%clk 0:02:45]} 8. hxg6 {[%clk 0:02:29]}  hxg6 {[%clk 0:02:46]} 9. Qc2 {[%clk 0:02:27]}  f5 {[%clk 0:02:44]} 10. Nf3 {[%clk 0:02:27]}  Nc6 {[%clk 0:02:45]} 11. O-O-O {[%clk 0:02:09]}  a5 {[%clk 0:02:35]} 12. d4 {[%clk 0:02:04]}  g5 {[%clk 0:02:20]} 13. e4 {[%clk 0:01:41]}  g4 {[%clk 0:02:03]} 14. Ne5 {[%clk 0:01:22]}  Nxd4 {[%clk 0:02:02]} 15. Rxd4 {[%clk 0:01:15]}  Bxe5 {[%clk 0:02:03]} 16. exf5 {[%clk 0:01:00]}  Qe7 {[%clk 0:00:44]} 17. Nd5 {[%clk 0:00:26]}  Qa3+ {[%clk 0:00:44]} 18. Kd1 {[%clk 0:00:27]}  Bxd4 {[%clk 0:00:44]} 19. f6 {[%clk 0:00:27]}  Kf7 {[%clk 0:00:44]} 20. Qh7+ {[%clk 0:00:14]}  Ke6 {[%clk 0:00:45]} 21. Nxc7+ {[%clk 0:00:12]}  Kd6 {[%clk 0:00:33]} 22. Nb5+ {[%clk 0:00:11]}  Kc6 {[%clk 0:00:28]} 23. Nxa3 {[%clk 0:00:11]}  Rxf6 {[%clk 0:00:23]} 24. Qe4+ {[%clk 0:00:11]}  Kc7 {[%clk 0:00:20]} 25. Qxd4 {[%clk 0:00:11]} 1-0

[Event "December 19 Early 2023"]
[Site "https://www.chess.com"]
[Date "2023.12.19"]
[Round "5"]
[White "Uritsky, Yonathan"]
[Black "Burovic, Rijad"]
[Result "1/2-1/2"]
[Board "111"]
[TimeControl "180+1"]
[WhiteFideId "2825651"]
[BlackFideId "14407701"]
[WhiteElo "2168"]
[BlackElo "2384"]
[WhiteTeam "ISR"]
[BlackTeam "BIH"]
[WhiteClock "0:00:04"]
[BlackClock "0:00:03"]

1. Nf3 {[%clk 0:03:00]}  g6 {[%clk 0:02:59]} 2. g3 {[%clk 0:03:00]}  Bg7 {[%clk 0:03:00]} 3. Bg2 {[%clk 0:03:00]}  d6 {[%clk 0:03:00]} 4. O-O {[%clk 0:02:59]}  e5 {[%clk 0:03:00]} 5. c4 {[%clk 0:02:57]}  Nc6 {[%clk 0:03:00]} 6. Nc3 {[%clk 0:02:57]}  f5 {[%clk 0:03:00]} 7. d3 {[%clk 0:02:57]}  Nf6 {[%clk 0:03:01]} 8. Rb1 {[%clk 0:02:57]}  O-O {[%clk 0:03:01]} 9. b4 {[%clk 0:02:57]}  h6 {[%clk 0:03:02]} 10. b5 {[%clk 0:02:57]}  Ne7 {[%clk 0:03:02]} 11. a4 {[%clk 0:02:57]}  Be6 {[%clk 0:03:02]} 12. Ne1 {[%clk 0:02:47]}  Rb8 {[%clk 0:03:01]} 13. Ba3 {[%clk 0:02:46]}  g5 {[%clk 0:03:01]} 14. Nc2 {[%clk 0:02:37]}  a5 {[%clk 0:02:29]} 15. bxa6 {[%clk 0:02:09]}  bxa6 {[%clk 0:02:30]} 16. Nb4 {[%clk 0:02:09]}  c5 {[%clk 0:02:16]} 17. Nc6 {[%clk 0:02:03]}  Nxc6 {[%clk 0:02:13]} 18. Bxc6 {[%clk 0:02:04]}  Qa5 {[%clk 0:02:13]} 19. Qc2 {[%clk 0:01:57]}  Qc7 {[%clk 0:01:57]} 20. Bg2 {[%clk 0:01:53]}  Rxb1 {[%clk 0:01:45]} 21. Rxb1 {[%clk 0:01:52]}  Rb8 {[%clk 0:01:46]} 22. Rb3 {[%clk 0:01:41]}  Bf8 {[%clk 0:01:05]} 23. Qb2 {[%clk 0:01:24]}  Rxb3 {[%clk 0:01:05]} 24. Qxb3 {[%clk 0:01:25]}  Qa5 {[%clk 0:01:02]} 25. Bc1 {[%clk 0:01:15]}  Qb4 {[%clk 0:00:57]} 26. Qc2 {[%clk 0:01:15]}  Be7 {[%clk 0:00:53]} 27. Bd2 {[%clk 0:01:14]}  Qb6 {[%clk 0:00:49]} 28. Nd5 {[%clk 0:01:08]}  Nxd5 {[%clk 0:00:49]} 29. cxd5 {[%clk 0:01:07]}  Bd7 {[%clk 0:00:49]} 30. h3 {[%clk 0:00:56]}  Bd8 {[%clk 0:00:48]} 31. Bf3 {[%clk 0:00:53]}  Kg7 {[%clk 0:00:43]} 32. g4 {[%clk 0:00:53]}  f4 {[%clk 0:00:41]} 33. Be4 {[%clk 0:00:51]}  Qb7 {[%clk 0:00:33]} 34. a5 {[%clk 0:00:50]}  Qb5 {[%clk 0:00:33]} 35. Qc3 {[%clk 0:00:43]}  Qb1+ {[%clk 0:00:28]} 36. Kg2 {[%clk 0:00:44]}  Bb5 {[%clk 0:00:28]} 37. h4 {[%clk 0:00:38]}  Qd1 {[%clk 0:00:24]} 38. hxg5 {[%clk 0:00:34]}  Qxe2 {[%clk 0:00:24]} 39. gxh6+ {[%clk 0:00:32]}  Kxh6 {[%clk 0:00:25]} 40. Bxf4+ {[%clk 0:00:29]}  Kg7 {[%clk 0:00:12]} 41. Bf5 {[%clk 0:00:26]}  Bf6 {[%clk 0:00:10]} 42. Qd2 {[%clk 0:00:24]}  Qxd2 {[%clk 0:00:05]} 43. Bxd2 {[%clk 0:00:25]}  Bd8 {[%clk 0:00:04]} 44. Kf3 {[%clk 0:00:24]}  Be7 {[%clk 0:00:03]} 45. Ke4 {[%clk 0:00:23]}  Be8 {[%clk 0:00:03]} 46. g5 {[%clk 0:00:23]}  Bb5 {[%clk 0:00:03]} 47. f4 {[%clk 0:00:18]}  exf4 {[%clk 0:00:03]} 48. Bc3+ {[%clk 0:00:17]}  Kg8 {[%clk 0:00:03]} 49. Kxf4 {[%clk 0:00:17]}  Bf8 {[%clk 0:00:03]} 50. Be6+ {[%clk 0:00:16]}  Kh7 {[%clk 0:00:03]} 51. Kf5 {[%clk 0:00:15]}  Bg7 {[%clk 0:00:03]} 52. Bxg7 {[%clk 0:00:13]}  Kxg7 {[%clk 0:00:04]} 53. Ke4 {[%clk 0:00:13]}  Kg6 {[%clk 0:00:04]} 54. d4 {[%clk 0:00:10]}  c4 {[%clk 0:00:04]} 55. Kf4 {[%clk 0:00:08]}  Ba4 {[%clk 0:00:03]} 56. Bf5+ {[%clk 0:00:05]}  Kg7 {[%clk 0:00:04]} 57. g6 {[%clk 0:00:06]}  c3 {[%clk 0:00:04]} 58. Ke3 {[%clk 0:00:03]}  Kf6 {[%clk 0:00:04]} 59. Be4 {[%clk 0:00:03]}  Bb5 {[%clk 0:00:04]} 60. Bc2 {[%clk 0:00:03]}  Bc4 {[%clk 0:00:04]} 61. Ke4 {[%clk 0:00:03]}  Be2 {[%clk 0:00:03]} 62. Ke3 {[%clk 0:00:03]}  Bf1 {[%clk 0:00:04]} 63. Bb1 {[%clk 0:00:03]}  Bb5 {[%clk 0:00:03]} 64. Be4 {[%clk 0:00:02]}  Ba4 {[%clk 0:00:02]} 65. Bf5 {[%clk 0:00:02]}  Bb3 {[%clk 0:00:02]} 66. Kd3 {[%clk 0:00:02]}  c2 {[%clk 0:00:02]} 67. Kd2 {[%clk 0:00:02]}  Ba4 {[%clk 0:00:03]} 68. Bxc2 {[%clk 0:00:02]}  Bxc2 {[%clk 0:00:03]} 69. Kxc2 {[%clk 0:00:03]}  Kxg6 {[%clk 0:00:04]} 70. Kd3 {[%clk 0:00:02]}  Kf5 {[%clk 0:00:04]} 71. Ke3 {[%clk 0:00:03]}  Kg4 {[%clk 0:00:05]} 72. Ke4 {[%clk 0:00:03]}  Kg5 {[%clk 0:00:03]} 73. Ke3 {[%clk 0:00:03]}  Kg4 {[%clk 0:00:02]} 74. Ke4 {[%clk 0:00:04]}  Kg5 {[%clk 0:00:03]} 75. Ke3 {[%clk 0:00:04]}  Kg4 {[%clk 0:00:03]} 1/2-1/2

[Event "December 19 Early 2023"]
[Site "https://www.chess.com"]
[Date "2023.12.19"]
[Round "5"]
[White "Antunez Soler, Luis"]
[Black "Bowden, Karl"]
[Result "1-0"]
[Board "112"]
[TimeControl "180+1"]
[WhiteFideId "3513335"]
[BlackFideId "400548"]
[WhiteElo "2154"]
[BlackElo "2438"]
[WhiteTeam "CUB"]
[BlackTeam "ENG"]
[WhiteClock "0:00:18"]
[BlackClock "0:00:00"]

1. e4 {[%clk 0:03:00]}  e5 {[%clk 0:02:56]} 2. Nf3 {[%clk 0:03:01]}  d5 {[%clk 0:02:56]} 3. Nxe5 {[%clk 0:03:00]}  Bd6 {[%clk 0:02:55]} 4. d4 {[%clk 0:03:01]}  dxe4 {[%clk 0:02:56]} 5. Qe2 {[%clk 0:03:01]}  Bxe5 {[%clk 0:02:42]} 6. dxe5 {[%clk 0:03:01]}  Bf5 {[%clk 0:02:41]} 7. Nc3 {[%clk 0:02:58]}  Ne7 {[%clk 0:02:39]} 8. h4 {[%clk 0:02:28]}  Nbc6 {[%clk 0:02:33]} 9. Be3 {[%clk 0:02:19]}  Nxe5 {[%clk 0:02:04]} 10. Qb5+ {[%clk 0:02:16]}  N5c6 {[%clk 0:01:51]} 11. Rd1 {[%clk 0:02:00]}  Qc8 {[%clk 0:01:49]} 12. h5 {[%clk 0:01:48]}  a6 {[%clk 0:01:45]} 13. Qc5 {[%clk 0:01:46]}  h6 {[%clk 0:01:16]} 14. Be2 {[%clk 0:01:45]}  O-O {[%clk 0:01:00]} 15. O-O {[%clk 0:01:44]}  Qe6 {[%clk 0:00:57]} 16. Bc4 {[%clk 0:01:37]}  Qf6 {[%clk 0:00:56]} 17. Nd5 {[%clk 0:01:38]}  Nxd5 {[%clk 0:00:55]} 18. Bxd5 {[%clk 0:01:39]}  Bg4 {[%clk 0:00:54]} 19. Rb1 {[%clk 0:01:33]}  Bxh5 {[%clk 0:00:51]} 20. Bxc6 {[%clk 0:01:33]}  Be2 {[%clk 0:00:47]} 21. Rfe1 {[%clk 0:01:32]}  Bf3 {[%clk 0:00:36]} 22. gxf3 {[%clk 0:01:13]}  exf3 {[%clk 0:00:35]} 23. Bxf3 {[%clk 0:01:10]}  Qxf3 {[%clk 0:00:35]} 24. Qxc7 {[%clk 0:01:10]}  Rac8 {[%clk 0:00:30]} 25. Qg3 {[%clk 0:01:10]}  Qh5 {[%clk 0:00:23]} 26. Bd4 {[%clk 0:01:06]}  f6 {[%clk 0:00:23]} 27. Re7 {[%clk 0:01:03]}  Rf7 {[%clk 0:00:21]} 28. Rbe1 {[%clk 0:01:01]}  Rcf8 {[%clk 0:00:18]} 29. Rxf7 {[%clk 0:00:57]}  Rxf7 {[%clk 0:00:17]} 30. Re8+ {[%clk 0:00:57]}  Kh7 {[%clk 0:00:17]} 31. Qd3+ {[%clk 0:00:52]}  f5 {[%clk 0:00:18]} 32. Bc3 {[%clk 0:00:50]}  Qg4+ {[%clk 0:00:16]} 33. Kf1 {[%clk 0:00:48]}  Qf4 {[%clk 0:00:11]} 34. Qd8 {[%clk 0:00:45]}  Qc1+ {[%clk 0:00:10]} 35. Be1 {[%clk 0:00:45]}  Qf4 {[%clk 0:00:08]} 36. Rh8+ {[%clk 0:00:44]}  Kg6 {[%clk 0:00:08]} 37. Qe8 {[%clk 0:00:41]}  Qc4+ {[%clk 0:00:07]} 38. Qe2 {[%clk 0:00:40]}  Qh4 {[%clk 0:00:07]} 39. Qf3 {[%clk 0:00:38]}  Qc4+ {[%clk 0:00:06]} 40. Qd3 {[%clk 0:00:36]}  Qg4 {[%clk 0:00:06]} 41. Re8 {[%clk 0:00:29]}  Rf6 {[%clk 0:00:06]} 42. Re3 {[%clk 0:00:28]}  Kh7 {[%clk 0:00:05]} 43. Rg3 {[%clk 0:00:28]}  Qf4 {[%clk 0:00:05]} 44. Bc3 {[%clk 0:00:28]}  Rf7 {[%clk 0:00:04]} 45. Qd4 {[%clk 0:00:27]}  Qc7 {[%clk 0:00:03]} 46. Qd5 {[%clk 0:00:21]}  Qe7 {[%clk 0:00:00]} 47. Rf3 {[%clk 0:00:18]} 1-0

[Event "December 19 Early 2023"]
[Site "https://www.chess.com"]
[Date "2023.12.19"]
[Round "5"]
[White "Spichkin, Alexander"]
[Black "Melian, Juan Sebastian"]
[Result "0-1"]
[Board "114"]
[TimeControl "180+1"]
[WhiteFideId "4144074"]
[BlackFideId "3706575"]
[WhiteElo "1955"]
[BlackElo "2098"]
[WhiteTeam "RUS"]
[BlackTeam "PAR"]
[WhiteClock "0:00:14"]
[BlackClock "0:01:40"]

1. f4 {[%clk 0:03:00]}  d6 {[%clk 0:02:55]} 2. Nf3 {[%clk 0:02:45]}  g6 {[%clk 0:02:54]} 3. d3 {[%clk 0:02:42]}  Bg7 {[%clk 0:02:54]} 4. e4 {[%clk 0:02:42]}  c5 {[%clk 0:02:51]} 5. Be2 {[%clk 0:02:42]}  Nc6 {[%clk 0:02:51]} 6. O-O {[%clk 0:02:43]}  Bg4 {[%clk 0:02:51]} 7. Nc3 {[%clk 0:02:43]}  e6 {[%clk 0:02:50]} 8. Qe1 {[%clk 0:02:44]}  Nge7 {[%clk 0:02:50]} 9. Qg3 {[%clk 0:02:43]}  h5 {[%clk 0:02:48]} 10. h3 {[%clk 0:02:36]}  Bxf3 {[%clk 0:02:47]} 11. Bxf3 {[%clk 0:02:33]}  Nd4 {[%clk 0:02:47]} 12. Bd1 {[%clk 0:02:32]}  h4 {[%clk 0:02:41]} 13. Qf2 {[%clk 0:02:30]}  Qd7 {[%clk 0:02:35]} 14. Ne2 {[%clk 0:02:23]}  O-O-O {[%clk 0:02:34]} 15. c3 {[%clk 0:02:18]}  Nxe2+ {[%clk 0:02:34]} 16. Bxe2 {[%clk 0:02:16]}  Kb8 {[%clk 0:02:34]} 17. Be3 {[%clk 0:02:16]}  f5 {[%clk 0:02:31]} 18. Rab1 {[%clk 0:02:13]}  Qa4 {[%clk 0:02:27]} 19. b4 {[%clk 0:02:11]}  c4 {[%clk 0:02:12]} 20. dxc4 {[%clk 0:02:04]}  fxe4 {[%clk 0:02:12]} 21. Bd1 {[%clk 0:01:41]}  Qa3 {[%clk 0:02:10]} 22. Rb3 {[%clk 0:01:34]}  Qa6 {[%clk 0:02:09]} 23. Be2 {[%clk 0:01:21]}  Nf5 {[%clk 0:01:56]} 24. c5 {[%clk 0:01:02]}  Qxa2 {[%clk 0:01:56]} 25. Bg4 {[%clk 0:00:52]}  Qxb3 {[%clk 0:01:53]} 26. cxd6 {[%clk 0:00:50]}  a6 {[%clk 0:01:49]} 27. Bxf5 {[%clk 0:00:46]}  gxf5 {[%clk 0:01:49]} 28. Bc5 {[%clk 0:00:32]}  Qxc3 {[%clk 0:01:41]} 29. Rb1 {[%clk 0:00:29]}  Rc8 {[%clk 0:01:40]} 30. d7 {[%clk 0:00:26]}  Rxc5 {[%clk 0:01:40]} 31. Rd1 {[%clk 0:00:19]}  Rd5 {[%clk 0:01:39]} 32. Rxd5 {[%clk 0:00:14]}  exd5 {[%clk 0:01:40]} 0-1

[Event "December 19 Early 2023"]
[Site "https://www.chess.com"]
[Date "2023.12.19"]
[Round "5"]
[White "Kvaloy, Aksel Bu"]
[Black "Sahin, Sarp"]
[Result "0-1"]
[Board "116"]
[TimeControl "180+1"]
[WhiteFideId "1528815"]
[BlackFideId "51605066"]
[WhiteElo "2265"]
[BlackElo "1775"]
[WhiteTeam "NOR"]
[BlackTeam "TUR"]
[WhiteClock "0:00:13"]
[BlackClock "0:00:05"]

1. d4 {[%clk 0:03:00]}  Nf6 {[%clk 0:01:38]} 2. Nf3 {[%clk 0:02:58]}  e6 {[%clk 0:01:36]} 3. Bg5 {[%clk 0:02:57]}  d5 {[%clk 0:01:37]} 4. Nbd2 {[%clk 0:02:56]}  Be7 {[%clk 0:01:37]} 5. e3 {[%clk 0:02:56]}  c5 {[%clk 0:01:38]} 6. c3 {[%clk 0:02:55]}  Nc6 {[%clk 0:01:37]} 7. Bd3 {[%clk 0:02:54]}  O-O {[%clk 0:01:37]} 8. O-O {[%clk 0:02:53]}  h6 {[%clk 0:01:37]} 9. Bf4 {[%clk 0:02:50]}  Bd6 {[%clk 0:01:36]} 10. Ne5 {[%clk 0:02:48]}  Qc7 {[%clk 0:01:36]} 11. Ndf3 {[%clk 0:02:42]}  Nd7 {[%clk 0:01:35]} 12. Bc2 {[%clk 0:02:39]}  Ndxe5 {[%clk 0:01:34]} 13. dxe5 {[%clk 0:02:38]}  Nxe5 {[%clk 0:01:33]} 14. Nxe5 {[%clk 0:02:30]}  Bxe5 {[%clk 0:01:32]} 15. Qd3 {[%clk 0:02:31]}  f5 {[%clk 0:01:30]} 16. Bg3 {[%clk 0:02:29]}  Bxg3 {[%clk 0:01:27]} 17. hxg3 {[%clk 0:02:29]}  a5 {[%clk 0:01:26]} 18. c4 {[%clk 0:02:28]}  dxc4 {[%clk 0:01:22]} 19. Qxc4 {[%clk 0:02:29]}  b5 {[%clk 0:01:22]} 20. Qc3 {[%clk 0:02:27]}  b4 {[%clk 0:01:20]} 21. Qd2 {[%clk 0:02:27]}  Ba6 {[%clk 0:01:20]} 22. Rfe1 {[%clk 0:02:25]}  Rad8 {[%clk 0:01:19]} 23. Qc1 {[%clk 0:02:25]}  Qe5 {[%clk 0:01:15]} 24. Bb3 {[%clk 0:02:23]}  Rd6 {[%clk 0:01:13]} 25. Bc4 {[%clk 0:02:21]}  Bb7 {[%clk 0:01:12]} 26. Qc2 {[%clk 0:02:18]}  Rfd8 {[%clk 0:01:09]} 27. Rad1 {[%clk 0:02:17]}  Be4 {[%clk 0:01:06]} 28. Qb3 {[%clk 0:02:11]}  Kh8 {[%clk 0:01:00]} 29. Rxd6 {[%clk 0:02:07]}  Rxd6 {[%clk 0:00:56]} 30. Rd1 {[%clk 0:02:06]}  Rxd1+ {[%clk 0:00:45]} 31. Qxd1 {[%clk 0:02:07]}  Bxg2 {[%clk 0:00:43]} 32. Qd8+ {[%clk 0:01:37]}  Kh7 {[%clk 0:00:41]} 33. Bxe6 {[%clk 0:01:10]}  Qxe6 {[%clk 0:00:42]} 34. Kxg2 {[%clk 0:01:10]}  Qxa2 {[%clk 0:00:40]} 35. Qd7 {[%clk 0:01:04]}  Qb1 {[%clk 0:00:36]} 36. Qb5 {[%clk 0:00:42]}  Qc2 {[%clk 0:00:11]} 37. Qxa5 {[%clk 0:00:40]}  Qxb2 {[%clk 0:00:06]} 38. Qxc5 {[%clk 0:00:40]}  Qb1 {[%clk 0:00:06]} 39. f3 {[%clk 0:00:33]}  b3 {[%clk 0:00:05]} 40. e4 {[%clk 0:00:34]}  Qc2+ {[%clk 0:00:05]} 41. Kh3 {[%clk 0:00:13]}  Qxc5 {[%clk 0:00:05]} 0-1

[Event "December 19 Early 2023"]
[Site "https://www.chess.com"]
[Date "2023.12.19"]
[Round "5"]
[White "Kahlert, Thomas"]
[Black "Manukian, Artak"]
[Result "0-1"]
[Board "117"]
[TimeControl "180+1"]
[WhiteFideId "4625242"]
[BlackFideId "13301373"]
[WhiteElo "2221"]
[BlackElo "2030"]
[WhiteTeam "GER"]
[BlackTeam "ARM"]
[WhiteClock "0:02:09"]
[BlackClock "0:01:08"]

1. c4 {[%clk 0:02:59]}  Nf6 {[%clk 0:02:34]} 2. Nc3 {[%clk 0:02:58]}  c5 {[%clk 0:02:32]} 3. Nf3 {[%clk 0:02:57]}  g6 {[%clk 0:02:28]} 4. g3 {[%clk 0:02:56]}  Bg7 {[%clk 0:02:28]} 5. Bg2 {[%clk 0:02:57]}  Nc6 {[%clk 0:02:27]} 6. O-O {[%clk 0:02:57]}  e5 {[%clk 0:02:26]} 7. d3 {[%clk 0:02:57]}  O-O {[%clk 0:02:26]} 8. a3 {[%clk 0:02:57]}  a5 {[%clk 0:02:25]} 9. Rb1 {[%clk 0:02:57]}  d6 {[%clk 0:02:24]} 10. Ne1 {[%clk 0:02:55]}  Bg4 {[%clk 0:02:23]} 11. Nc2 {[%clk 0:02:53]}  Qd7 {[%clk 0:02:23]} 12. Ne3 {[%clk 0:02:53]}  Bh3 {[%clk 0:02:23]} 13. Ncd5 {[%clk 0:02:53]}  Nxd5 {[%clk 0:02:20]} 14. Nxd5 {[%clk 0:02:53]}  Bxg2 {[%clk 0:02:20]} 15. Kxg2 {[%clk 0:02:53]}  Rae8 {[%clk 0:02:07]} 16. e4 {[%clk 0:02:46]}  f5 {[%clk 0:02:06]} 17. f3 {[%clk 0:02:43]}  Nd4 {[%clk 0:01:55]} 18. Bd2 {[%clk 0:02:42]}  f4 {[%clk 0:01:43]} 19. g4 {[%clk 0:02:36]}  h5 {[%clk 0:01:41]} 20. h3 {[%clk 0:02:36]}  hxg4 {[%clk 0:01:35]} 21. hxg4 {[%clk 0:02:35]}  Kf7 {[%clk 0:01:33]} 22. Bxa5 {[%clk 0:02:34]}  Rh8 {[%clk 0:01:30]} 23. Rh1 {[%clk 0:02:34]}  Rxh1 {[%clk 0:01:20]} 24. Qxh1 {[%clk 0:02:32]}  Rh8 {[%clk 0:01:21]} 25. Qe1 {[%clk 0:02:22]}  Qa4 {[%clk 0:01:17]} 26. Bc3 {[%clk 0:02:21]}  Qc2+ {[%clk 0:01:13]} 27. Bd2 {[%clk 0:02:10]}  Qxd3 {[%clk 0:01:10]} 28. Qf1 {[%clk 0:02:09]}  Qxd2+ {[%clk 0:01:08]} 0-1